Cogmind - Beta 11 X6 @@@ ROGUE MODE // 2021.07.31 @ 20:47:47 Player: Plexion Result: Destroyed by S-27 Virus with Autogun Performance ------------- Evolutions (3) 1500 Regions Visited (11) 2200 Robots Destroyed (170) 850 Value Destroyed (5862) 5862 Prototype IDs (8) 160 Alien Tech Used (0) 0 Bonus (2548) 2548 TOTAL SCORE: 13120 Bonus ------- High Alert Combat Kills 695 Entered Garrisons 800 Used RIF Installer 1500 Friendly Fire -447 Cogmind --------- Core Integrity 0/700 Matter 80/300 Energy 99/100 System Corruption 17% Temperature Cool (0) Movement Core (50) Location -7/Garrison Parts ------- > --- POWER (1) -------- (None) > --- PROPULSION (4) --- (None) > --- UTILITY (5) ------ (None) > --- WEAPON (3) ------- (None) > --- INVENTORY (5) ---- Improved Deuterium Engine Large Storage Unit Heavy Particle Cannon Remote Datajack Peak State ------------ > --- POWER ------------ Improved Deuterium Engine > --- PROPULSION ------- Light Treads Light Treads Light Treads > --- UTILITY ---------- Experimental Heat Sink High-capacity Storage Unit Signal Interpreter Improved Medium Armor Plating Relay Coupler [Sentry] > --- WEAPON ----------- Cooled Plasma Cannon Gauss Rifle Heavy Proton Missile Launcher > --- INVENTORY -------- Light Nuclear Core Large Storage Unit Hardened Heavy Armor Plating Hardened Heavy Armor Plating Improved Medium Armor Plating Relay Coupler [NC] Drone Bay Improved EM Pulse Cannon Assault Rifle Light Assault Rifle Heavy Assault Rifle Flak Gun Scatter Rocket Array Scatter Rocket Array Remote Datajack Remote Datajack Plasma Cutter [Rating: 47] Favorites ----------- Power Reinforced Ion Engine Engine Reinforced Ion Engine Power Core Nuclear Core Propulsion Advanced Treads Treads Advanced Treads Wheel Wheel Flight Unit Improved Flight Unit Utility Signal Interpreter Device Improved Heat Sink Storage High-capacity Storage Unit Processor Signal Interpreter Hackware Relay Coupler [Sentry] Protection Light Armor Plating Weapon Heavy Assault Rifle Energy Gun Precision Shock Rifle Energy Cannon Cooled Plasma Cannon Ballistic Gun Heavy Assault Rifle Launcher Mini Grenade Launcher Special Weapon Plasma Cutter Build | -11 -10 -9 -9 -8 -8 -8 -8 -7 -7 -7 -7 ------- Run | Scr Mat Mat Sto Mat Gar Mat Gar Fac Gar Fac Gar Slots Evolved 6 | . . 2 . 2 . . . 2 . . . Power . | . . . . . . . . . . . . Propulsion 2 | . . . . 1 . . . 1 . . . Utility 3 | . . 1 . 1 . . . 1 . . . Weapon 1 | . . 1 . . . . . . . . . Parts Attached 161 | 6 3 5 29 5 11 25 5 71 . . 1 Power 11 | 1 . 1 2 . . 1 1 5 . . . Engine 8 | 1 . 1 2 . . 1 . 3 . . . Core 3 | . . . . . . . 1 2 . . . Reactor . | . . . . . . . . . . . . Propulsion 33 | 2 . . 13 1 1 4 . 12 . . . Treads 29 | 2 . . 10 1 1 4 . 11 . . . Leg . | . . . . . . . . . . . . Wheel 3 | . . . 2 . . . . 1 . . . Hover . | . . . . . . . . . . . . Flight 1 | . . . 1 . . . . . . . . Utility 45 | 1 2 2 3 3 3 12 . 19 . . . Device 12 | . . . 1 2 1 2 . 6 . . . Storage 4 | 1 1 . 1 . . . . 1 . . . Processor 1 | . . 1 . . . . . . . . . Hackware 1 | . . . . . . . . 1 . . . Protection 27 | . 1 1 1 1 2 10 . 11 . . . Artifact . | . . . . . . . . . . . . Weapon 72 | 2 1 2 11 1 7 8 4 35 . . 1 Energy Gun 1 | . . . . . . . . 1 . . . Energy Cannon 7 | . . . . . . . . 7 . . . Ballistic Gun 44 | 2 1 2 8 1 5 7 2 16 . . . Ballistic Cannon . | . . . . . . . . . . . . Launcher 18 | . . . 3 . 2 1 2 9 . . 1 Special Weapon 2 | . . . . . . . . 2 . . . Impact Weapon . | . . . . . . . . . . . . Slashing Weapon . | . . . . . . . . . . . . Piercing Weapon . | . . . . . . . . . . . . Special Melee Weapon . | . . . . . . . . . . . . Unidentified Prototypes 8 | . . . 2 . . . . 6 . . . Parts Lost 41 | . . 2 6 2 1 6 1 22 . . 1 Power 7 | . . 1 1 . . 1 1 3 . . . Propulsion 12 | . . . 2 . . 1 . 9 . . . Utility 12 | . . 1 2 1 . 2 . 6 . . . Weapon 10 | . . . 1 1 1 2 . 4 . . 1 Highest Loss Streak 7 | . . 2 2 2 1 1 1 7 . . 1 Average Slot Usage (%) 92 | . 97 90 98 98 99 98 97 92 . . . Engine 7 | . 14 10 10 9 9 8 6 3 . . . Core 1 | . . . . . . . . 2 . . . Treads 23 | . 28 22 19 27 27 26 27 25 . . . Device 6 | . . . 5 15 1 6 9 9 . . . Storage 8 | . 14 11 11 9 9 9 9 6 . . . Processor 7 | . . 2 11 9 9 9 9 6 . . . Protection 8 | . 11 13 4 2 16 11 9 8 . . . Ballistic Gun 23 | . 28 30 29 23 25 26 26 19 . . . Naked Turns 326 | . . . . . . . . 30 96 138 62 Heaviest Build 92 | 11 30 39 63 71 70 70 65 92 . . . Greatest Support 89 | 40 40 40 46 66 66 68 66 89 3 3 3 Greatest Overweight (x) 4 | . . . 4 1 1 1 . 2 . . . Average Overweight (x) . | . . . . . . . . . . . . Largest Inventory Capacity 20 | 8 15 15 20 20 20 20 20 20 5 5 5 Average Capacity 17 | 7 12 15 15 20 20 20 20 19 5 5 5 Most Carried 20 | 2 9 11 20 15 19 20 19 20 4 5 5 Average Carried 15 | . 7 9 14 13 14 19 18 18 4 4 4 Final Capacity 20 | 8 15 15 20 20 20 20 20 5 5 5 5 Final Carried 19 | 2 9 11 15 14 19 19 18 4 4 5 4 Class Distribution -------------------- 45% | Scavenger-Tank 16% | Mutant 14% | Scavenger-Mutant 12% | Tank 9% | Scavenger-Gunner Dominant Class ---------------- Mutant | -10/Materials Tank | -9/Materials Scavenger-Tank | -9/Storage Scavenger-Gunner | -8/Materials Scavenger-Tank | -8/Garrison Scavenger-Tank | -8/Materials Scavenger-Tank | -8/Garrison Scavenger-Tank | -7/Factory Mutant | -7/Garrison Mutant | -7/Factory Mutant | -7/Garrison Resources | -11 -10 -9 -9 -8 -8 -8 -8 -7 -7 -7 -7 ----------- Run | Scr Mat Mat Sto Mat Gar Mat Gar Fac Gar Fac Gar Matter Collected 5056 | 233 113 253 975 150 308 985 163 1771 . . 105 Remotely . | . . . . . . . . . . . . Salvage Created 6457 | . 134 332 1500 311 413 1023 247 2429 . . 68 Parts 346 | . 6 17 71 25 25 60 16 118 . . 8 Haulers Intercepted 7 | . . . 5 . . . . 2 . . . Recyclers Shooed 4 | . . 1 . 1 . . . 2 . . . Parts Field Recycled . | . . . . . . . . . . . . Retrieved Matter . | . . . . . . . . . . . . Parts Self-Destructed . | . . . . . . . . . . . . Prevented . | . . . . . . . . . . . . Kills | -11 -10 -9 -9 -8 -8 -8 -8 -7 -7 -7 -7 ------- Run | Scr Mat Mat Sto Mat Gar Mat Gar Fac Gar Fac Gar Combat Hostiles Destroyed 139 | . 4 7 20 9 13 20 13 48 . . 5 Melee 1 | . . . . . . . . 1 . . . Guns 99 | . 4 7 20 9 10 18 3 28 . . . Cannons 4 | . . . . . . . . 4 . . . AOE 35 | . . . . . 3 2 10 15 . . 5 Classes Destroyed 16 | . 2 4 3 . . 2 . 5 . . . Worker 6 | . . 1 2 . . 2 . 1 . . . Builder 6 | . . . 2 . . 2 . 2 . . . Hauler 7 | . . . 5 . . . . 2 . . . Recycler 7 | . . 1 3 . . . . 3 . . . Mechanic 1 | . . . . . . . . 1 . . . Operator 2 | . . . . . . 2 . . . . . Watcher 3 | . . 1 1 . . 1 . . . . . Swarmer 37 | . 2 3 . 4 7 2 8 6 . . 5 Grunt 57 | . 2 2 12 2 2 9 5 23 . . . Brawler 3 | . . . 1 . . 1 . 1 . . . Duelist 1 | . . . . . . . . 1 . . . Sentry 28 | . . 2 7 3 4 7 . 5 . . . Demolisher 2 | . . . . . . . . 2 . . . Hunter 4 | . . . . . . 1 . 3 . . . Programmer 6 | . . . . . . . . 6 . . . Assembled 2 | . . . . . . . . 2 . . . Best Kill Streak 8 | . 2 5 4 4 4 5 8 5 . . 5 Combat Bots Only 8 | . 2 4 3 4 4 3 8 4 . . 5 Max Kills in Single Turn 5 | . 1 2 2 2 2 2 4 5 . . 3 Gunslinging 1 | . . . 1 1 1 . . . . . . Exploded 4 | . . . . . 2 1 4 4 . . 3 Melee 1 | . . . . . . . . 1 . . . Uniques/NPCs Destroyed . | . . . . . . . . . . . . Combat | -11 -10 -9 -9 -8 -8 -8 -8 -7 -7 -7 -7 -------- Run | Scr Mat Mat Sto Mat Gar Mat Gar Fac Gar Fac Gar Damage Taken 9114 | . 173 361 960 448 476 1307 201 4740 6 4 438 Core 1116 | . 31 29 109 37 26 163 19 317 6 4 375 Absorbed by Shields 29 | . . . . . . . . 12 . . 17 Core Remaining (%) 76 | 100 87 . 65 . . . 55 . . . . Volleys Fired 415 | . 15 24 79 21 26 75 16 157 . . 2 Largest 3 | . 2 3 3 3 3 3 3 3 . . 1 Hottest 128 | . 40 63 69 69 69 74 69 128 . . 30 Shots Fired 1062 | . 30 67 222 62 63 218 30 368 . . 2 Gun 969 | . 30 67 215 62 60 215 23 297 . . . Cannon 36 | . . . . . . . . 36 . . . Launcher 33 | . . . 7 . 3 3 7 11 . . 2 Special 24 | . . . . . . . . 24 . . . Kinetic 969 | . 30 67 215 62 60 215 23 297 . . . Thermal 57 | . . . . . . . . 57 . . . Explosive 27 | . . . 7 . 3 3 7 5 . . 2 Electromagnetic 6 | . . . . . . . . 6 . . . Robot Hit Streak 16 | . 4 9 14 9 9 14 9 16 . . 4 Robot Miss Streak 8 | . 5 3 4 3 3 8 2 6 . . . Penetration Max 1 | . . . . . . 1 . 1 . . . Secondary Targets 12 | . . . 4 2 2 3 . 1 . . . Max Gunslinging Chain 2 | . . . 1 2 1 1 . 1 . . . Shots Hit Robots 648 | . 16 39 137 37 35 131 20 231 . . 2 Core Hits 339 | . 7 15 55 15 18 50 21 147 . 1 10 Critical Kills . | . . . . . . . . . . . . Critical Parts Destroyed 5 | . . 1 . . . 2 . 2 . . . Critical Strikes 6 | . . 1 . . . 2 . 3 . . . Destroy 5 | . . 1 . . . 2 . 2 . . . Sever 1 | . . . . . . . . 1 . . . Melee Attacks . | . . . . . . . . . . . . Impact . | . . . . . . . . . . . . Slashing . | . . . . . . . . . . . . Piercing . | . . . . . . . . . . . . Sneak Attacks . | . . . . . . . . . . . . Combat Hostiles . | . . . . . . . . . . . . Follow-up Attacks . | . . . . . . . . . . . . Damage Inflicted 13673 | . 214 531 1964 557 730 2427 788 6125 6 8 323 Guns 9829 | . 214 531 1934 557 559 2163 234 3637 . . . Cannons 550 | . . . . . . . . 550 . . . Explosions 3130 | . . . 30 . 171 264 554 1788 . . 323 Melee . | . . . . . . . . . . . . Ramming 24 | . . . . . . . . 10 6 8 . Kinetic 9829 | . 214 531 1934 557 559 2163 234 3637 . . . Thermal 690 | . . . . . . . . 690 . . . Explosive 2796 | . . . 30 . 171 264 554 1454 . . 323 Electromagnetic 334 | . . . . . . . . 334 . . . Impact . | . . . . . . . . . . . . Slashing . | . . . . . . . . . . . . Piercing . | . . . . . . . . . . . . Highest Corruption 17 | . . . . . . . . 15 15 17 17 Average Corruption 6 | . . . . . . . . 5 15 15 17 Corruption Purged . | . . . . . . . . . . . . Effects 73 | . . . . . . . . 63 2 5 3 Message Errors 19 | . . . . . . . . 15 1 1 2 Matter Fused 18 | . . . . . . . . 15 1 2 . Heat Flow Errors 12 | . . . . . . . . 12 . . . Energy Discharges 4 | . . . . . . . . 3 . 1 . Parts Rejected 2 | . . . . . . . . 2 . . . Data Loss (minor) 8 | . . . . . . . . 8 . . . Data Loss (major) 2 | . . . . . . . . 2 . . . Misfires 2 | . . . . . . . . 2 . . . Alerts 1 | . . . . . . . . . . 1 . Misdirections 1 | . . . . . . . . . . . 1 Weapon Failures 4 | . . . . . . . . 4 . . . Overload Shots . | . . . . . . . . . . . . Overflow Damage 57 | . . . 12 . . . . 40 . . 5 Projectiles 7 | . . . . . . . . 7 . . . Explosions 50 | . . . 12 . . . . 33 . . 5 Melee . | . . . . . . . . . . . . Knockbacks 1 | . . . . . . . . 1 . . . Impact 1 | . . . . . . . . 1 . . . Kinetic . | . . . . . . . . . . . . Secondary . | . . . . . . . . . . . . Self-Inflicted Damage 292 | . . . 33 . 34 . . 148 6 4 67 Shots 12 | . . . 1 . 1 . . 8 . . 2 Rammed 3 | . . . . . . . . 1 . 2 . Targets Rammed 4 | . . . . . . . . 2 . 2 . Kicked . | . . . . . . . . . . . . Crushed 1 | . . . . . . . . 1 . . . Highest Temperature 304 | . 34 111 131 62 170 304 10 261 . . . Average Temperature 48 | . 17 38 34 20 56 101 10 59 . . . Received Heat Transfer 2751 | . 87 102 384 171 153 531 108 1182 . . 33 Siege Activations . | . . . . . . . . . . . . Robots Corrupted . | . . . . . . . . . . . . Combat Hostiles . | . . . . . . . . . . . . Parts Fried . | . . . . . . . . . . . . Impact Corruptions . | . . . . . . . . . . . . Robots Melted . | . . . . . . . . . . . . Combat Hostiles . | . . . . . . . . . . . . Parts Melted 2 | . . . . . . . . 2 . . . Heat Transferred 1431 | . . . . . . . . 1431 . . . Parts Sabotaged . | . . . . . . . . . . . . Parts Stolen . | . . . . . . . . . . . . Parts Stripped . | . . . . . . . . . . . . Power Chain Reactions . | . . . . . . . . . . . . Missiles Intercepted . | . . . . . . . . . . . . Alert | -11 -10 -9 -9 -8 -8 -8 -8 -7 -7 -7 -7 ------- Run | Scr Mat Mat Sto Mat Gar Mat Gar Fac Gar Fac Gar Peak Influence 1182 | . 71 214 357 234 597 421 503 1182 827 629 558 Initial 827 | . . 22 90 . 152 280 110 263 827 434 440 Average 267 | . 42 137 79 90 383 261 281 394 827 477 444 Maximum Alert Level 4 | . . 1 1 1 2 2 2 4 3 2 2 Low Security (%) 58 | 100 100 67 88 83 18 29 51 53 . . . Level 1 15 | . . 32 11 16 24 64 19 1 . . . Level 2 16 | . . . . . 56 5 29 21 . 100 100 Level 3 9 | . . . . . . . . 21 100 . . Level 4 . | . . . . . . . . 2 . . . Level 5 . | . . . . . . . . . . . . High Security . | . . . . . . . . . . . . Max Security . | . . . . . . . . . . . . Squads Dispatched 26 | . . . 4 . . 3 . 19 . . . Investigation 3 | . . . 1 . . . . 2 . . . Extermination 5 | . . . . . . . . 5 . . . Reinforcement 12 | . . . 3 . . 2 . 7 . . . Assault 5 | . . . . . . . . 5 . . . Garrison 1 | . . . . . . 1 . . . . . Intercept . | . . . . . . . . . . . . Construction Impeded 2 | . . . . . . . . 2 . . . Haulers Reinforced 1 | . . . . . . . . 1 . . . Active Scanning Responses . | . . . . . . . . . . . . Cargo Convoy Interrupts 1 | . . . . . . . . 1 . . . Stealth | -11 -10 -9 -9 -8 -8 -8 -8 -7 -7 -7 -7 --------- Run | Scr Mat Mat Sto Mat Gar Mat Gar Fac Gar Fac Gar Distress Signals 16 | . 2 1 2 1 . 4 . 6 . . . Communications Jammed . | . . . . . . . . . . . . Distress Signals . | . . . . . . . . . . . . Times Spotted 228 | . 5 9 32 17 13 33 14 85 . 2 18 Peak Tracking Total 19 | . 2 4 4 6 4 4 8 9 . 2 19 Tactical Retreats 7 | . . . . . 1 1 1 4 . . . Traps | -11 -10 -9 -9 -8 -8 -8 -8 -7 -7 -7 -7 ------- Run | Scr Mat Mat Sto Mat Gar Mat Gar Fac Gar Fac Gar Traps Triggered 12 | . . . 2 . . . . 7 2 . 1 Indirectly . | . . . . . . . . . . . . Trap Hack Attempts . | . . . . . . . . . . . . Triggered . | . . . . . . . . . . . . Disarmed . | . . . . . . . . . . . . Reprogrammed . | . . . . . . . . . . . . Reused . | . . . . . . . . . . . . Traps Extracted . | . . . . . . . . . . . . Installed . | . . . . . . . . . . . . Triggered 4 | . . . . . . . . 4 . . . Machines | -11 -10 -9 -9 -8 -8 -8 -8 -7 -7 -7 -7 ---------- Run | Scr Mat Mat Sto Mat Gar Mat Gar Fac Gar Fac Gar Machines Disabled 9 | . . . 1 . 1 3 1 3 . . . Max in Single Turn 2 | . . . 1 . 1 2 1 2 . . . Garrison Access 1 | . . . . . . . . 1 . . . Garrison Relay 2 | . . . . . 1 . 1 . . . . Machines Sabotaged . | . . . . . . . . . . . . Garrisons Compromised 1 | . . . . . . . . 1 . . . Overloaded Fab Kills . | . . . . . . . . . . . . Fab Network Shutdowns . | . . . . . . . . . . . . Hacking | -11 -10 -9 -9 -8 -8 -8 -8 -7 -7 -7 -7 --------- Run | Scr Mat Mat Sto Mat Gar Mat Gar Fac Gar Fac Gar Machines Accessed 24 | . 2 . 7 1 . 7 . 5 . 2 . Terminals 18 | . 2 . 7 . . 6 . 2 . 1 . Fabricators 1 | . . . . . . . . 1 . . . Repair Stations . | . . . . . . . . . . . . Recycling Units . | . . . . . . . . . . . . Scanalyzers . | . . . . . . . . . . . . Garrison Access 5 | . . . . 1 . 1 . 2 . 1 . Total Hacks 50 | . 4 . 20 1 . 15 . 7 . 3 . Successful 23 | . 3 . 10 1 . 4 . 4 . 1 . Failed 27 | . 1 . 10 . . 11 . 3 . 2 . Catastrophic 5 | . . . . . . 4 . 1 . . . Database Lockouts . | . . . . . . . . . . . . Manual 22 | . 4 . 2 . . 14 . 2 . . . Terminals 43 | . 4 . 20 . . 14 . 3 . 2 . Fabricators 1 | . . . . . . . . 1 . . . Repair Stations . | . . . . . . . . . . . . Recycling Units . | . . . . . . . . . . . . Scanalyzers . | . . . . . . . . . . . . Garrison Access 6 | . . . . 1 . 1 . 3 . 1 . Terminal Hacks 14 | . 1 . 9 . . 3 . 1 . . . Robot Analysis 1 | . 1 . . . . . . . . . . Open Door 4 | . . . 4 . . . . . . . . Alert Level 2 | . . . 2 . . . . . . . . Unreport Threat 7 | . . . 3 . . 3 . 1 . . . Fabricator Hacks . | . . . . . . . . . . . . Repair Station Hacks . | . . . . . . . . . . . . Recycling Unit Hacks . | . . . . . . . . . . . . Scanalyzer . | . . . . . . . . . . . . Garrison Access Hacks 5 | . . . . 1 . 1 . 2 . 1 . Unlock Access 4 | . . . . 1 . 1 . 1 . 1 . Seal Access 1 | . . . . . . . . 1 . . . Unauthorized Hacks 4 | . 2 . 1 . . . . 1 . . . Terminals 3 | . 2 . 1 . . . . . . . . Track 3 | . 2 . 1 . . . . . . . . Fabricators . | . . . . . . . . . . . . Repair Stations . | . . . . . . . . . . . . Recycling Units . | . . . . . . . . . . . . Scanalyzers . | . . . . . . . . . . . . Garrison Access 1 | . . . . . . . . 1 . . . Restock 1 | . . . . . . . . 1 . . . Data Cores Recovered 1 | . . . . . . 1 . . . . . Used . | . . . . . . . . . . . . Hacking Detections 18 | . 1 . 5 . . 6 . 5 . 1 . Full Trace Events 1 | . . . 1 . . . . . . . . Feedback Events . | . . . . . . . . . . . . Feedback Blocked . | . . . . . . . . . . . . Robot Schematics Acquired . | . . . . . . . . . . . . Robots Built . | . . . . . . . . . . . . Matter . | . . . . . . . . . . . . Time . | . . . . . . . . . . . . Total Robot Build Rating . | . . . . . . . . . . . . Part Schematics Acquired . | . . . . . . . . . . . . Parts Built . | . . . . . . . . . . . . Matter . | . . . . . . . . . . . . Time . | . . . . . . . . . . . . Total Part Build Rating . | . . . . . . . . . . . . Parts Repaired . | . . . . . . . . . . . . Time . | . . . . . . . . . . . . Parts Recycled . | . . . . . . . . . . . . Recycled Matter . | . . . . . . . . . . . . Retrieved Matter . | . . . . . . . . . . . . Retrieved Components . | . . . . . . . . . . . . Parts Scanalyzed . | . . . . . . . . . . . . Part Schematics Acquired . | . . . . . . . . . . . . Parts Damaged . | . . . . . . . . . . . . Bothacking | -11 -10 -9 -9 -8 -8 -8 -8 -7 -7 -7 -7 ------------ Run | Scr Mat Mat Sto Mat Gar Mat Gar Fac Gar Fac Gar Used RIF Installer 3 | . . . . . 1 . 1 . 1 . . Watcher Feeds 1 | . . . . . . . . . 1 . . Structural Interface 1 | . . . . . . . 1 . . . . Robots Hacked 1 | . . . . . . . . 1 . . . Non-combat . | . . . . . . . . . . . . Combat 1 | . . . . . . . . 1 . . . Robot Hacks Applied 1 | . . . . . . . . 1 . . . formatsys_high 1 | . . . . . . . . 1 . . . Relay Couplers Released 9 | . . . . . 5 . 4 . . . . Machine Destruction 9 | . . . . . 5 . 4 . . . . Attached 1 | . . . . . . . . 1 . . . Robots Rewired . | . . . . . . . . . . . . Allies Hacked . | . . . . . . . . . . . . Hacks Repelled . | . . . . . . . . . . . . Allies | -11 -10 -9 -9 -8 -8 -8 -8 -7 -7 -7 -7 -------- Run | Scr Mat Mat Sto Mat Gar Mat Gar Fac Gar Fac Gar Total Allies 1 | . . . . . . . . 1 . . . Largest Group 1 | . . . . . . . . 1 . . . Highest-Rated Group 32 | . . . . . . . . 32 . . . Highest-Rated Ally 32 | . . . . . . . . 32 . . . Total Orders 11 | . . . 2 2 2 . . 5 . . . STAY 2 | . . . . . 1 . . 1 . . . FOLLOW 1 | . . . . . 1 . . . . . . EXPLORE 6 | . . . 2 . . . . 4 . . . RETURN 2 | . . . . 2 . . . . . . . Ally Attacks . | . . . . . . . . . . . . Total Damage . | . . . . . . . . . . . . Kills . | . . . . . . . . . . . . Allies Corrupted . | . . . . . . . . . . . . Allies Melted . | . . . . . . . . . . . . Intel | -11 -10 -9 -9 -8 -8 -8 -8 -7 -7 -7 -7 ------- Run | Scr Mat Mat Sto Mat Gar Mat Gar Fac Gar Fac Gar Robot Analysis Total 1 | . 1 . . . . . . . . . . Derelict Logs Recovered . | . . . . . . . . . . . . Drone Launches 18 | . . . 14 . . . . 4 . . . Drone Recoveries 6 | . . . 2 2 . . . 2 . . . Exploration | -11 -10 -9 -9 -8 -8 -8 -8 -7 -7 -7 -7 ------------- Run | Scr Mat Mat Sto Mat Gar Mat Gar Fac Gar Fac Gar Turns Passed 8915 | 78 524 350 1874 369 696 1052 293 3379 96 138 66 Spaces Moved 4483 | 47 293 158 861 123 331 478 163 1582 129 226 92 Core 509 | 6 . . . . . . . 56 129 226 92 Treads 3762 | 41 293 158 649 123 331 478 163 1526 . . . Legs . | . . . . . . . . . . . . Wheels 212 | . . . 212 . . . . . . . . Hover . | . . . . . . . . . . . . Flight . | . . . . . . . . . . . . Fastest Speed 50 | 50 160 160 105 160 160 145 145 50 50 50 50 Average Speed 156 | 145 160 160 172 233 164 154 145 170 50 50 50 Slowest Speed 370 | 160 160 160 260 260 260 260 145 370 50 50 50 Overloaded Moves . | . . . . . . . . . . . . Propulsion Burnouts . | . . . . . . . . . . . . Robots Hopped . | . . . . . . . . . . . . Cave-ins Triggered . | . . . . . . . . . . . . Exploration Rate (%) 40 | 4 54 12 97 28 68 49 45 56 38 10 28 Regions Visited 11 Branch Regions 1 Pre-discovered Areas . | . . . . . . . . . . . . Known Exits Taken 6 | . . 1 1 1 . 1 . 1 . 1 . Unknown Exits Taken 2 | 1 1 . . . . . . . . . . Scrap Searched . | . . . . . . . . . . . . Spaces Dug 26 | . . . 25 . . . . 1 . . . Terrain Destroyed 249 | . . . 91 . 14 1 38 95 . . 10 Melee . | . . . . . . . . . . . . Projectile 15 | . . . . . . 1 . 14 . . . AOE 234 | . . . 91 . 14 . 38 81 . . 10 Terrain Rammed 1 | . . . . . . . . . 1 . . Walls Destroyed . | . . . . . . . . . . . . Machines Disabled . | . . . . . . . . . . . . Actions | -11 -10 -9 -9 -8 -8 -8 -8 -7 -7 -7 -7 --------- Run | Scr Mat Mat Sto Mat Gar Mat Gar Fac Gar Fac Gar Total 5532 | 54 320 201 1089 156 429 635 193 1935 159 251 110 Wait 284 | . 2 12 72 5 59 33 10 70 . 19 2 Move 4476 | 46 292 157 860 123 330 478 162 1582 128 226 92 Hop . | . . . . . . . . . . . . Pick Up 71 | 2 7 3 20 2 3 9 . 22 . 3 . Fast Attach 36 | 6 1 2 9 . . 1 . 17 . . . Attach 39 | . . 2 7 3 2 5 1 18 . . 1 Detach 11 | . . . 3 . . . . 8 . . . Swap 86 | . 2 1 13 2 9 19 4 36 . . . Drop 59 | . 1 . 20 . . 15 . 22 . 1 . Fire 415 | . 15 24 79 21 26 75 16 157 . . 2 Melee . | . . . . . . . . . . . . Ram 4 | . . . . . . . . . 1 2 1 Kick . | . . . . . . . . . . . . Crush 2 | . . . . . . . . 2 . . . Escape Stasis 43 | . . . . . . . . 1 30 . 12 Rewire . | . . . . . . . . . . . . Trap . | . . . . . . . . . . . . Miscellaneous 6 | . . . 6 . . . . . . . . Route ------- -11/Scrapyard -10/Materials (discovered 2 exits: [*Mat x2]) -9/Materials (discovered 2 exits: [*Min] / *Sto) -9/Storage -8/Materials -8/Garrison (discovered 3 exits: *Mat x3) -8/Materials (discovered 2 exits: *Fac / Gar) -8/Garrison -7/Factory (discovered 3 exits: *Fac / *Low / Gar) -7/Garrison -7/Factory -7/Garrison History --------- Turn | Location | Event 9 | -11/Scrapyard | Discovered new exit (range 15) 79 | -11/Scrapyard | Entered Materials 304 | -10/Materials | Build established: Mutant 383 | -10/Materials | Discovered new exit (range 7) 522 | -10/Materials | Discovered new exit (range 11) 603 | -10/Materials | Entered another Materials area 603 | -9/Materials | Evolved 2 slots: Utility x1, Weapon x1 650 | -9/Materials | Discovered new exit (range 6) 723 | -9/Materials | Discovered new exit (range 11) 951 | -9/Materials | Identified exit to Storage 953 | -9/Materials | Entered Storage 956 | -9/Storage | Build established: Tank 1629 | -9/Storage | Discovered new exit (range 14) 2145 | -9/Storage | Found Prototype Launcher 2145 | -9/Storage | Identified Scatter Rocket Array 2470 | -9/Storage | Identified exit to Materials 2615 | -9/Storage | Build established: Mutant 2827 | -9/Storage | Entered Materials 2827 | -8/Materials | Accompanied by 10 allies 2827 | -8/Materials | Evolved 2 slots: Propulsion x1, Utility x1 3196 | -8/Materials | Identified exit to Garrison 3196 | -8/Materials | Entered Garrison 3196 | -8/Garrison | Accompanied by 8 allies 3283 | -8/Garrison | Triggered checkpoint 3416 | -8/Garrison | Discovered new exit (range 13) 3483 | -8/Garrison | Triggered checkpoint 3584 | -8/Garrison | Discovered new exit (range 10) 3598 | -8/Garrison | Identified exit to Materials 3654 | -8/Garrison | Triggered checkpoint 3727 | -8/Garrison | Discovered exit to Materials (range 9) 3751 | -8/Garrison | Installed Relay Interface Framework 3778 | -8/Garrison | Triggered checkpoint 3821 | -8/Garrison | Garrison Relay disabled 3829 | -8/Garrison | Build established: Scavenger-Tank 3875 | -8/Garrison | Triggered checkpoint 3892 | -8/Garrison | Entered Materials 3892 | -8/Materials | Accompanied by 5 allies 4317 | -8/Materials | Discovered new exit (range 9) 4890 | -8/Materials | Garrison activated, responded to threat 4944 | -8/Materials | Identified exit to Garrison 4944 | -8/Materials | Entered Garrison 4952 | -8/Garrison | Expanded RIF knowledge: Structural Interface 5045 | -8/Garrison | Triggered checkpoint 5127 | -8/Garrison | Destroyed 8 combat bots 5140 | -8/Garrison | Triggered checkpoint 5177 | -8/Garrison | Garrison Relay disabled 5220 | -8/Garrison | Discovered new exit (range 12) 5236 | -8/Garrison | Identified exit to Factory 5237 | -8/Garrison | Entered Factory 5237 | -7/Factory | Evolved 2 slots: Propulsion x1, Utility x1 5363 | -7/Factory | Discovered new exit (range 14) 5421 | -7/Factory | Identified exit to Factory 6339 | -7/Factory | Discovered new exit (range 13) 6396 | -7/Factory | Identified exit to Lower Caves 6511 | -7/Factory | Build established: Tank 6617 | -7/Factory | Assembled infested ambush trap array 6761 | -7/Factory | Lost 7 parts (1p1n4u1w) 7114 | -7/Factory | Cargo convoy interrupted 7637 | -7/Factory | First assault squad dispatched 8030 | -7/Factory | Found Scatter Rocket Array 8183 | -7/Factory | System corruption reached 10% 8213 | -7/Factory | Lost 3 parts (1p1n1u) 8586 | -7/Factory | Released all parts (9) 8616 | -7/Factory | Identified exit to Garrison 8616 | -7/Factory | Entered Garrison 8619 | -7/Garrison | Expanded RIF knowledge: Watcher Feeds 8687 | -7/Garrison | Discovered new exit (range 11) 8712 | -7/Garrison | Entered Factory 8850 | -7/Factory | Identified exit to Garrison 8850 | -7/Factory | Entered Garrison 8884 | -7/Garrison | Triggered checkpoint 8892 | -7/Garrison | Core integrity fell below 50% 8897 | -7/Garrison | Build established: Mutant 8904 | -7/Garrison | Triggered checkpoint 8912 | -7/Garrison | Core integrity fell below 20% 8916 | -7/Garrison | Destroyed by S-27 Virus with Autogun Last Messages --------------- 08888_ Field strength at 48. 08889_ Field strength at 42. 08890_ Field strength at 31. 08891_ Field strength at 25. 08892_ Field strength at 15. 08893_ Field strength at 9. 08894_ Stasis field depleted. 08905_ C-30 ARC bursts open, deploying its payload. 08905_ S-27 Virus unfolds itself. 08905_ RIF reveals location of phase wall. 08907_ Q5GE